bitfinex/quotes_SOLUSD_20241213
["timestamp","ask_amount","ask_price","bid_price","bid_amount"]
[1734073004084,8.33962678,224.7,224.63,8.33962678]
[1734073006593,8.33962678,224.69,224.62,8.33962678]
[1734073007673,8.33962678,224.65,224.56,8.4092748]
[1734073007886,8.33962678,224.64,224.57,8.33962678]
[1734073008888,8.33962678,224.65,224.58,8.33962678]
[1734073009501,0.12549,224.68,224.58,8.33962678]
[1734073009671,8.33962678,224.65,224.58,8.33962678]
[1734073010291,20.0,224.7,224.6,8.33962678]
[1734073010497,8.33962678,224.68,224.6,8.33962678]
[1734073010889,8.33962678,224.68,224.56,8.4092748]
[1734073010890,8.33962678,224.68,224.61,8.33962678]
[1734073011091,8.33962678,224.67,224.6,8.33962678]
[1734073011684,8.33962678,224.66,224.56,8.4092748]
[1734073011892,8.33962678,224.66,224.59,8.33962678]
[1734073013403,8.33962678,224.65,224.58,8.33962678]
[1734073013605,8.33962678,224.65,224.58,8.73310158]
[1734073013991,8.33962678,224.64,224.58,0.3934748]
[1734073014696,8.33962678,224.65,224.58,8.73310158]
[1734073014887,8.33962678,224.66,224.59,8.33962678]
[1734073016489,8.33962678,224.65,224.58,8.73310158]
[1734073017901,20.0,224.69,224.6,8.33962678]
[1734073018102,20.0,224.68,224.62,8.33962678]
[1734073021310,28.33962678,224.68,224.61,8.33962678]
[1734073023327,8.33962678,224.65,224.58,0.3934748]
[1734073023502,8.33962678,224.65,224.58,8.73310158]
[1734073027186,8.33962678,224.63,224.58,0.3934748]
[1734073027591,8.33962678,224.6,224.58,0.3934748]
[1734073027819,0.12549,224.59,224.58,0.3934748]
[1734073028025,8.46511678,224.59,224.58,0.3934748]
[1734073030493,0.12549,224.59,224.58,0.3934748]
[1734073030694,28.46511678,224.59,224.58,0.3934748]
[1734073030896,52.24200078,224.59,224.58,0.3934748]
[1734073032621,52.24200078,224.59,224.58,7.48e-05]
[1734073034297,8.33962678,224.47,224.39,6.97482154]
[1734073034596,8.33962678,224.48,224.4,8.33962678]
[1734073034793,8.33962678,224.48,224.39,6.97482154]
[1734073034998,0.12549,224.47,224.39,6.97482154]
[1734073035309,0.12549,224.47,224.4,8.33962678]
[1734073035513,8.33962678,224.48,224.41,8.33962678]
[1734073036244,61.1333,224.55,224.43,8.33962678]
[1734073036245,20.0,224.51,224.43,8.33962678]
[1734073036413,28.33962678,224.51,224.43,8.33962678]
[1734073036608,28.33962678,224.51,224.44,8.33962678]
[1734073037226,8.33962678,224.46,224.37,0.5323517]
[1734073037414,8.33962678,224.47,224.37,0.5323517]
[1734073037624,8.33962678,224.5,224.43,8.33962678]
[1734073037809,0.12549,224.49,224.37,0.5323517]
[1734073038009,23.776884,224.54,224.44,8.33962678]
[1734073038219,8.33962678,224.49,224.37,24.3092357]
[1734073038531,8.33962678,224.46,224.37,0.5323517]
[1734073038719,0.12549,224.45,224.37,0.5323517]
[1734073038917,0.12549,224.48,224.42,8.33962678]
[1734073039224,34.910484,224.55,224.44,8.33962678]
[1734073039534,8.33962678,224.51,224.44,8.33962678]
[1734073039720,8.33962678,224.5,224.43,8.33962678]
[1734073040935,8.33962678,224.52,224.44,8.33962678]
[1734073041955,8.33962678,224.47,224.37,0.5323517]
[1734073042147,8.33962678,224.48,224.41,8.33962678]
[1734073042336,0.12549,224.51,224.37,0.5323517]
[1734073042629,8.33962678,224.49,224.42,8.33962678]
[1734073043111,23.902374,224.51,224.43,8.33962678]
[1734073043320,8.46511678,224.49,224.42,8.33962678]
[1734073043526,8.33962678,224.48,224.41,8.33962678]
[1734073044332,8.33962678,224.48,224.37,0.5323517]
[1734073044532,8.33962678,224.48,224.41,8.33962678]
[1734073045040,20.0,224.52,224.37,0.5323517]
[1734073045225,8.33962678,224.47,224.37,0.5323517]
[1734073045426,8.33962678,224.46,224.39,8.33962678]
[1734073046021,8.33962678,224.47,224.4,8.33962678]
[1734073046222,8.33962678,224.46,224.37,0.5323517]
[1734073046542,8.33962678,224.46,224.39,8.33962678]
[1734073047440,8.46511678,224.45,224.38,8.33962678]
[1734073047743,8.46511678,224.45,224.37,0.5323517]
[1734073047744,20.0,224.4,224.37,0.5323517]
[1734073048419,28.33962678,224.42,224.37,0.5323517]
[1734073048723,8.33962678,224.41,224.37,0.5323517]
[1734073048936,0.12549,224.41,224.37,0.5323517]
[1734073049142,8.33962678,224.39,224.37,0.5323517]
[1734073049372,8.33962678,224.4,224.37,0.5323517]
[1734073049658,20.0,224.42,224.37,0.5323517]
[1734073049831,28.33962678,224.42,224.37,0.5323517]
[1734073050030,8.46511678,224.41,224.37,0.5323517]
[1734073050252,0.12549,224.39,224.37,0.5323517]
[1734073050547,0.12549,224.4,224.37,0.5323517]
[1734073050727,20.0,224.41,224.37,0.5323517]
[1734073050930,0.12549,224.44,224.37,0.5323517]
[1734073051120,8.33962678,224.43,224.37,0.5323517]
[1734073052662,8.33962678,224.47,224.4,8.33962678]
[1734073053340,8.33962678,224.47,224.39,8.33962678]
[1734073053556,31.5241,224.55,224.44,8.33962678]
[1734073053741,8.33962678,224.51,224.44,8.33962678]
[1734073054143,8.33962678,224.49,224.39,8.0196]
[1734073054473,31.5241,224.55,224.39,8.0196]
[1734073054474,8.33962678,224.47,224.39,8.0196]
[1734073054655,8.33962678,224.47,224.4,8.33962678]
[1734073055031,8.33962678,224.48,224.41,8.33962678]
[1734073055651,20.0,224.5,224.42,8.33962678]
[1734073055856,8.33962678,224.49,224.42,8.33962678]
[1734073056449,28.33962678,224.5,224.39,8.0196]
[1734073056652,8.33962678,224.5,224.39,8.0196]
[1734073056838,8.33962678,224.5,224.42,8.33962678]
[1734073058154,8.33962678,224.5,224.39,8.0196]
[1734073058357,8.33962678,224.49,224.42,8.33962678]
[1734073058562,8.33962678,224.5,224.43,8.33962678]
[1734073060359,8.33962678,224.49,224.42,8.33962678]
[1734073060847,8.33962678,224.5,224.43,8.33962678]
[1734073062357,8.33962678,224.48,224.39,8.0196]
[1734073062564,8.33962678,224.46,224.39,8.0196]
[1734073062756,8.33962678,224.43,224.39,8.0196]
[1734073065556,8.33962678,224.44,224.39,8.0196]
[1734073067675,8.33962678,224.49,224.41,8.33962678]
[1734073067901,8.33962678,224.5,224.43,8.33962678]
[1734073068177,1.5241,224.55,224.39,8.0196]
[1734073068178,8.33962678,224.49,224.42,8.33962678]
[1734073069684,8.33962678,224.5,224.43,8.33962678]
[1734073070160,8.33962678,224.49,224.42,8.33962678]
[1734073071059,8.33962678,224.5,224.43,8.33962678]
[1734073073575,8.33962678,224.51,224.44,8.33962678]
[1734073073746,1.5241,224.55,224.44,8.33962678]
[1734073073747,28.33962678,224.52,224.44,8.33962678]
[1734073074853,8.33962678,224.51,224.44,8.33962678]
[1734073075486,8.33962678,224.51,224.39,8.68783752]
[1734073075648,8.33962678,224.51,224.44,8.33962678]
[1734073076250,8.33962678,224.5,224.43,8.33962678]
[1734073080278,8.33962678,224.5,224.39,8.0196]
[1734073080457,8.33962678,224.5,224.43,8.33962678]
[1734073082477,8.33962678,224.5,224.42,8.33962678]
[1734073082988,8.33962678,224.5,224.43,8.33962678]
[1734073083172,8.33962678,224.51,224.43,8.33962678]
[1734073083760,8.33962678,224.51,224.39,8.0196]
[1734073083962,8.33962678,224.51,224.43,8.33962678]
[1734073085281,8.33962678,224.51,224.39,8.0196]
[1734073085456,8.33962678,224.51,224.42,8.33962678]
[1734073086196,8.33962678,224.51,224.39,8.0196]
[1734073086368,8.33962678,224.48,224.39,8.0196]
[1734073086568,8.33962678,224.48,224.4,8.33962678]
[1734073087284,8.33962678,224.47,224.39,8.0196]
[1734073087477,8.33962678,224.46,224.39,16.35922678]
[1734073090290,8.33962678,224.47,224.39,16.35922678]
[1734073091189,8.33962678,224.47,224.39,8.0196]
[1734073091487,8.33962678,224.47,224.39,16.35922678]
[1734073092293,8.33962678,224.48,224.4,8.33962678]
[1734073092583,8.33962678,224.48,224.39,8.0196]
[1734073092789,8.33962678,224.48,224.4,8.33962678]
[1734073093363,23.902374,224.51,224.39,8.0196]
[1734073093364,20.0,224.51,224.43,8.33962678]
[1734073093569,20.0,224.52,224.43,8.33962678]
[1734073093773,8.33962678,224.51,224.44,8.33962678]
[1734073094384,20.0,224.52,224.44,8.33962678]
[1734073094592,8.33962678,224.54,224.47,8.33962678]
[1734073094888,8.33962678,224.53,224.46,8.33962678]
[1734073097006,8.33962678,224.54,224.47,8.33962678]
[1734073097296,8.33962678,224.52,224.4,33.35850712]
[1734073097507,8.33962678,224.52,224.45,8.33962678]
[1734073098591,8.33962678,224.52,224.39,19.1606]
[1734073098795,8.33962678,224.52,224.45,8.33962678]
[1734073101481,8.33962678,224.52,224.39,19.1606]
[1734073101691,8.33962678,224.52,224.44,8.33962678]
[1734073103383,23.776884,224.56,224.39,19.1606]
[1734073103384,8.33962678,224.5,224.39,19.1606]
[1734073103703,8.33962678,224.49,224.42,8.33962678]
[1734073109402,8.33962678,224.49,224.39,8.0196]
[1734073109704,8.33962678,224.47,224.4,8.33962678]
[1734073112494,8.33962678,224.44,224.37,0.5323517]
[1734073112993,8.33962678,224.42,224.37,0.5323517]
[1734073113210,8.33962678,224.43,224.37,0.5323517]
[1734073113913,8.33962678,224.42,224.37,0.5323517]
[1734073115301,8.33962678,224.4,224.37,0.5323517]
[1734073115504,20.12549,224.43,224.37,0.5323517]
[1734073115714,8.33962678,224.4,224.37,0.5323517]
[1734073116218,0.12549,224.43,224.37,0.5323517]
[1734073116514,8.33962678,224.41,224.37,0.5323517]
[1734073117100,8.33962678,224.42,224.37,0.5323517]
[1734073117305,8.33962678,224.45,224.39,8.33962678]
[1734073118195,8.33962678,224.45,224.37,0.5323517]
[1734073118394,8.33962678,224.45,224.38,8.33962678]
[1734073118694,20.0,224.45,224.39,8.33962678]
[1734073118894,28.33962678,224.45,224.38,8.33962678]
[1734073119319,28.33962678,224.45,224.37,0.5323517]
[1734073119623,8.33962678,224.44,224.37,8.87197848]
[1734073122711,8.33962678,224.44,224.37,0.5323517]
[1734073122918,8.33962678,224.44,224.37,8.87197848]
[1734073123507,20.0,224.45,224.37,8.87197848]
[1734073123728,28.33962678,224.45,224.38,8.33962678]
[1734073124721,20.0,224.46,224.4,8.33962678]
[1734073125304,5.22097618,224.49,224.42,8.33962678]
[1734073125619,8.33962678,224.51,224.44,8.33962678]
[1734073125999,15.20220789,224.52,224.45,8.33962678]
[1734073126223,8.33962678,224.51,224.44,8.33962678]
[1734073127324,8.33962678,224.5,224.43,8.33962678]
[1734073127820,8.33962678,224.5,224.44,8.33962678]
[1734073129128,8.33962678,224.5,224.43,8.33962678]
[1734073131739,8.33962678,224.49,224.42,8.33962678]
[1734073132239,8.33962678,224.48,224.38,11.1418]
[1734073132395,8.33962678,224.48,224.41,8.33962678]
[1734073134040,8.33962678,224.49,224.42,8.33962678]
[1734073134412,8.33962678,224.48,224.41,8.33962678]
[1734073134738,8.33962678,224.5,224.43,8.33962678]
[1734073135147,8.33962678,224.5,224.38,11.1418]
[1734073135352,8.33962678,224.5,224.43,8.33962678]
[1734073135514,8.33962678,224.49,224.42,8.33962678]
[1734073135710,8.33962678,224.49,224.38,11.1418]
[1734073135936,8.33962678,224.49,224.42,8.33962678]
[1734073136431,8.33962678,224.49,224.38,11.1418]
[1734073136736,8.33962678,224.48,224.41,8.33962678]
[1734073137634,8.33962678,224.47,224.4,8.33962678]
[1734073140332,8.33962678,224.47,224.37,8.5899517]
[1734073140533,8.33962678,224.46,224.39,8.33962678]
[1734073140832,8.33962678,224.46,224.37,8.5899517]
[1734073141035,8.33962678,224.45,224.37,7.0102517]
[1734073141260,8.33962678,224.43,224.37,0.5323517]
[1734073141414,8.33962678,224.42,224.37,0.5323517]
[1734073141844,8.33962678,224.39,224.37,0.5323517]
[1734073142131,8.33962678,224.38,224.37,0.5323517]
[1734073142338,8.33962678,224.39,224.37,0.5323517]
[1734073142540,1.6493,224.41,224.37,0.5323517]
[1734073142541,20.0,224.4,224.37,0.5323517]
[1734073144740,9.98892678,224.41,224.37,0.5323517]
[1734073146044,8.33962678,224.39,224.37,0.5323517]
[1734073147839,8.33962678,224.4,224.37,0.5323517]
[1734073148134,8.33962678,224.39,224.37,0.5323517]
[1734073148350,1.6493,224.41,224.37,0.5323517]
[1734073148574,8.33962678,224.4,224.37,0.5323517]
[1734073148965,20.0,224.38,224.37,0.5323517]
[1734073153641,13.6951433,224.51,224.37,8.87197848]
[1734073153969,8.33962678,224.48,224.41,8.33962678]
[1734073154344,13.6951433,224.51,224.42,8.33962678]
[1734073154667,15.20220789,224.49,224.42,8.33962678]
[1734073154967,15.20220789,224.49,224.37,1.20066445]
[1734073155147,8.33962678,224.48,224.41,8.33962678]
[1734073155339,8.33962678,224.48,224.37,0.5323517]
[1734073155531,8.33962678,224.48,224.41,8.33962678]
[1734073156650,8.33962678,224.48,224.37,1.20068195]
[1734073156853,8.33962678,224.48,224.37,20.5323517]
[1734073157053,8.33962678,224.48,224.41,8.33962678]
[1734073158872,6.86258111,224.49,224.37,20.5323517]
[1734073158873,8.33962678,224.47,224.4,8.33962678]
[1734073160056,0.12549,224.48,224.37,0.5323517]
[1734073160364,8.33962678,224.45,224.38,8.33962678]
[1734073160857,8.33962678,224.44,224.37,8.87197848]
[1734073161253,8.33962678,224.4,224.37,0.5323517]
[1734073163642,8.33962678,224.39,224.37,0.5323517]
[1734073163849,8.33962678,224.38,224.37,0.5323517]
[1734073165469,8.33962678,224.38,224.3,21.0793517]
[1734073165669,8.33962678,224.36,224.3,21.0793517]
[1734073166185,8.33962678,224.37,224.3,29.41897848]
[1734073166685,8.33962678,224.36,224.3,21.0793517]
[1734073167955,8.33962678,224.35,224.3,21.0793517]
[1734073168155,8.33962678,224.36,224.3,21.0793517]
[1734073169051,20.0,224.37,224.31,8.33962678]
[1734073169271,8.33962678,224.4,224.33,8.33962678]
[1734073169473,8.33962678,224.4,224.32,8.33962678]
[1734073170173,8.33962678,224.39,224.32,8.33962678]
[1734073171052,8.33962678,224.39,224.3,21.0793517]
[1734073171053,8.33962678,224.37,224.3,21.0793517]
[1734073171256,8.33962678,224.37,224.3,29.41897848]
[1734073171765,20.0,224.39,224.31,8.33962678]
[1734073171971,8.33962678,224.38,224.31,8.33962678]
[1734073172171,8.33962678,224.38,224.3,21.0793517]
[1734073172377,8.33962678,224.38,224.31,8.33962678]
[1734073174756,20.0,224.39,224.32,8.33962678]
[1734073175448,28.33962678,224.39,224.32,8.33962678]
[1734073175651,8.33962678,224.38,224.3,21.0793517]
[1734073175852,8.33962678,224.38,224.31,8.33962678]
[1734073176550,8.33962678,224.38,224.3,29.41897848]
[1734073177469,8.33962678,224.38,224.3,21.0793517]
[1734073177676,8.33962678,224.36,224.3,21.0793517]
[1734073178965,8.33962678,224.36,224.3,16.3029517]
[1734073178966,8.46511678,224.31,224.3,16.3029517]
[1734073179175,20.0,224.32,224.3,16.3029517]
[1734073179457,28.33962678,224.32,224.3,16.3029517]
[1734073179658,20.0,224.32,224.3,16.3029517]
[1734073180184,8.33962678,224.31,224.3,16.3029517]
[1734073184185,32.24200078,224.31,224.3,16.3029517]
[1734073185997,37.67616223,224.31,224.3,16.3029517]
[1734073186377,43.57829832,224.31,224.3,16.3029517]
[1734073190287,35.11318154,224.31,224.3,16.3029517]
[1734073190591,43.45280832,224.31,224.3,16.3029517]
[1734073190790,19.67592432,224.31,224.3,16.3029517]
[1734073190998,19.67592432,224.31,224.25,1.005]
[1734073191178,8.33962678,224.28,224.25,1.005]
[1734073191375,11.33629754,224.31,224.25,1.005]
[1734073191376,8.33962678,224.27,224.25,1.005]
[1734073191984,11.33629754,224.31,224.25,1.005]
[1734073191985,8.33962678,224.26,224.25,1.005]
[1734073192496,5.43416145,224.27,224.25,1.005]
[1734073192979,8.33962678,224.26,224.25,1.005]
[1734073200486,8.46511678,224.26,224.25,1.005]
[1734073201080,6.99686145,224.27,224.25,1.005]
[1734073201272,8.33962678,224.26,224.25,1.005]
[1734073203400,6.99686145,224.27,224.25,1.005]
[1734073203593,8.33962678,224.26,224.25,1.005]
[1734073204202,5.43416145,224.27,224.25,1.005]
[1734073204517,8.33962678,224.26,224.25,1.005]
[1734073204816,5.90213609,224.31,224.25,1.005]
[1734073204979,8.33962678,224.27,224.25,1.005]
[1734073205379,8.33962678,224.28,224.25,1.005]
[1734073205801,5.43416145,224.32,224.25,1.005]
[1734073205986,8.33962678,224.3,224.25,1.005]
[1734073208375,8.33962678,224.27,224.25,1.005]
[1734073208582,8.33962678,224.26,224.25,1.005]
[1734073208904,20.0,224.26,224.25,1.005]
[1734073209217,5.78689478,224.28,224.25,1.005]
[1734073209581,8.33962678,224.26,224.25,1.005]
[1734073209901,8.33962678,224.3,224.25,1.005]
[1734073210106,8.33962678,224.29,224.25,1.005]
[1734073210302,5.78689478,224.34,224.25,1.005]
[1734073210303,8.33962678,224.28,224.25,1.005]
[1734073210513,8.33962678,224.29,224.25,1.005]
[1734073211002,8.33962678,224.3,224.25,1.005]
[1734073211899,5.72469775,224.38,224.25,9.34462678]
[1734073212125,4.05955947,224.39,224.25,9.34462678]
[1734073212126,8.33962678,224.33,224.26,8.33962678]
[1734073212625,8.33962678,224.34,224.27,8.33962678]
[1734073212988,8.33962678,224.33,224.26,8.33962678]
[1734073214489,4.05955947,224.39,224.25,7.1999]
[1734073214490,8.33962678,224.32,224.25,7.1999]
[1734073214689,8.33962678,224.32,224.25,15.53952678]
[1734073214892,8.33962678,224.31,224.25,7.1999]
[1734073215691,20.0,224.37,224.25,7.1999]
[1734073215914,8.33962678,224.32,224.25,15.53952678]
[1734073216111,20.0,224.37,224.25,15.53952678]
[1734073216325,20.0,224.38,224.29,8.33962678]
[1734073216634,8.33962678,224.36,224.29,8.33962678]
[1734073216826,8.33962678,224.36,224.25,7.1999]
[1734073216827,2.49945947,224.39,224.26,0.66866835]
[1734073217144,2.49945947,224.39,224.25,7.1999]
[1734073217145,8.33962678,224.35,224.28,8.33962678]
[1734073217301,8.33962678,224.34,224.27,8.33962678]
[1734073217727,8.33962678,224.34,224.25,7.1999]
[1734073217932,22.49945947,224.39,224.27,8.33962678]
[1734073218099,8.33962678,224.34,224.27,8.33962678]
[1734073218303,8.33962678,224.35,224.28,8.33962678]
[1734073218523,2.49945947,224.39,224.26,0.66866862]
[1734073218838,8.33962678,224.35,224.28,8.33962678]
[1734073219022,2.49945947,224.39,224.25,7.1999]
[1734073219023,8.33962678,224.32,224.25,7.1999]
[1734073219197,8.33962678,224.33,224.26,8.33962678]
[1734073220004,8.33962678,224.34,224.26,8.33962678]
[1734073220533,8.33962678,224.35,224.27,8.33962678]
[1734073220720,22.49945947,224.39,224.25,7.1999]
[1734073220917,22.49945947,224.39,224.27,8.33962678]
[1734073220918,8.33962678,224.34,224.27,8.33962678]
[1734073221635,8.33962678,224.32,224.25,7.1999]
[1734073222302,8.33962678,224.32,224.25,15.53952678]
[1734073222503,8.33962678,224.32,224.25,7.1999]
[1734073223835,8.33962678,224.3,224.25,7.1999]
[1734073224231,8.33962678,224.28,224.25,1.005]
[1734073224650,28.33962678,224.26,224.25,1.005]
[1734073225158,8.33962678,224.27,224.25,1.005]
[1734073225733,8.33962678,224.29,224.25,1.005]
[1734073225931,1.5778,224.35,224.25,1.005]
[1734073225932,8.33962678,224.3,224.25,1.005]
[1734073226259,8.33962678,224.31,224.25,1.005]
[1734073226858,8.33962678,224.3,224.25,1.005]
[1734073227728,8.33962678,224.28,224.25,1.005]
[1734073230163,8.33962678,224.27,224.25,1.005]
[1734073230979,8.33962678,224.26,224.25,1.005]
[1734073232350,8.33962678,224.27,224.25,1.005]
[1734073232851,8.33962678,224.28,224.25,1.005]
[1734073237677,20.0,224.31,224.25,1.005]
[1734073238253,12.16933143,224.36,224.25,9.34462678]
[1734073238458,8.33962678,224.32,224.25,9.34462678]
[1734073238984,8.33962678,224.33,224.26,8.33962678]
[1734073239463,8.33962678,224.32,224.25,9.34462678]
[1734073239668,8.33962678,224.28,224.25,1.005]
[1734073241293,8.33962678,224.29,224.25,1.005]
[1734073242898,23.902374,224.35,224.25,1.005]
[1734073243068,8.33962678,224.3,224.25,1.005]
[1734073244897,5.3388716,224.36,224.25,9.34462678]
[1734073245079,8.33962678,224.33,224.26,8.33962678]
[1734073245278,20.0,224.33,224.26,8.33962678]
[1734073245481,28.33962678,224.33,224.26,8.33962678]
[1734073245787,8.33962678,224.33,224.26,8.33962678]
[1734073245989,8.33962678,224.33,224.25,1.005]
[1734073246187,28.33962678,224.33,224.26,8.33962678]
[1734073246404,28.33962678,224.33,224.26,16.43052678]
[1734073246605,28.33962678,224.33,224.26,16.21052678]
[1734073247287,28.33962678,224.33,224.26,8.0909]
[1734073247605,8.33962678,224.32,224.26,8.0909]
[1734073247904,20.0,224.33,224.25,1.005]
[1734073248072,8.33962678,224.3,224.25,1.005]
[1734073249598,20.0,224.33,224.25,1.005]
[1734073249599,8.33962678,224.29,224.25,1.005]
[1734073250892,8.33962678,224.3,224.25,1.005]
[1734073251110,20.0,224.33,224.25,1.005]
[1734073251283,8.33962678,224.31,224.25,1.005]
[1734073251787,20.0,224.33,224.25,9.34462678]
[1734073251988,8.33962678,224.32,224.25,9.34462678]
[1734073252304,8.33962678,224.31,224.25,1.005]
[1734073252907,20.0,224.33,224.25,1.005]
[1734073253209,28.33962678,224.33,224.26,8.33962678]
[1734073254080,8.33962678,224.32,224.25,9.34462678]
[1734073255104,6.86956608,224.38,224.27,8.33962678]
[1734073255303,8.33962678,224.34,224.27,8.33962678]
[1734073255616,20.0,224.26,224.25,1.005]
[1734073255986,28.33962678,224.26,224.25,1.005]
[1734073258994,52.24200078,224.26,224.25,1.005]
[1734073259183,52.24200078,224.26,224.25,0.0001]
[1734073260604,43.902374,224.21,224.2,25.0]
[1734073260902,20.0,224.21,224.2,25.0]
[1734073261122,8.33962678,224.22,224.2,25.0]
[1734073261332,20.0,224.21,224.2,25.0]
[1734073261537,28.33962678,224.21,224.2,25.0]
[1734073261825,20.0,224.27,224.2,25.0]
[1734073262206,4.22348911,224.29,224.2,25.0]
[1734073262428,8.33962678,224.25,224.2,25.0]
[1734073262642,8.33962678,224.24,224.2,25.0]
[1734073263006,8.33962678,224.25,224.2,25.0]
[1734073263211,8.33962678,224.27,224.2,25.0]
[1734073263420,8.33962678,224.28,224.2,33.33962678]
[1734073263625,12.83337686,224.3,224.2,33.33962678]
[1734073263818,8.33962678,224.28,224.2,33.33962678]
[1734073264225,12.83337686,224.3,224.2,25.0]
[1734073264418,8.33962678,224.27,224.2,25.0]
[1734073264767,8.33962678,224.26,224.2,25.0]
[1734073264933,8.33962678,224.21,224.2,25.0]
[1734073267135,32.24200078,224.21,224.2,25.0]
[1734073269421,20.0,224.16,224.15,0.5323517]
[1734073269625,52.24200078,224.16,224.15,0.5323517]
[1734073270129,43.776884,224.16,224.15,0.5323517]
[1734073270434,52.11651078,224.16,224.15,0.5323517]
[1734073270610,43.776884,224.16,224.15,0.5323517]
[1734073270810,52.11651078,224.16,224.15,0.5323517]
[1734073271041,28.33962678,224.16,224.15,0.5323517]
[1734073271623,55.50822328,224.16,224.15,0.5323517]
[1734073272274,47.1685965,224.16,224.15,0.5323517]
[1734073272445,55.50822328,224.16,224.15,0.5323517]
[1734073272740,23.2662225,224.16,224.15,0.5323517]
[1734073273113,31.60584928,224.16,224.15,0.5323517]
[1734073273318,3.2662225,224.16,224.15,0.5323517]
[1734073275032,11.60584928,224.16,224.15,0.5323517]
[1734073277122,2.7662225,224.16,224.15,0.5323517]
[1734073277931,2.2662225,224.16,224.15,0.5323517]
[1734073278667,1.7662225,224.16,224.15,0.5323517]
[1734073279334,8.33962678,224.18,224.15,0.5323517]
[1734073279738,7.83962678,224.18,224.15,0.5323517]
[1734073280350,8.33962678,224.19,224.15,0.5323517]
[1734073280523,20.0,224.22,224.15,0.5323517]
[1734073280845,8.33962678,224.2,224.15,0.5323517]
[1734073281224,7.33962678,224.2,224.15,0.5323517]
[1734073281844,20.0,224.22,224.15,8.87197848]
[1734073282042,19.0,224.22,224.16,8.33962678]
[1734073282540,11.1465,224.29,224.15,0.5323517]
[1734073282738,8.33962678,224.25,224.18,8.33962678]
[1734073283526,8.33962678,224.24,224.17,8.33962678]
[1734073284134,47.22597101,224.31,224.2,8.33962678]
[1734073284322,8.33962678,224.27,224.2,8.33962678]
[1734073284525,8.33962678,224.25,224.19,8.33962678]
[1734073284736,8.33962678,224.25,224.18,8.33962678]
[1734073285138,8.33962678,224.24,224.17,8.33962678]
[1734073285648,8.33962678,224.2,224.15,0.5323517]
[1734073285951,33.35850712,224.29,224.15,0.5323517]
[1734073285952,8.33962678,224.18,224.15,0.5323517]
[1734073286151,8.33962678,224.17,224.15,0.5323517]
[1734073286654,8.33962678,224.16,224.15,0.5323517]
[1734073289254,8.33962678,224.17,224.15,0.5323517]
[1734073289758,20.0,224.16,224.15,0.5323517]
[1734073290132,8.33962678,224.17,224.15,0.5323517]
[1734073291141,30.0,224.24,224.15,0.5323517]
[1734073291331,8.33962678,224.18,224.15,0.5323517]
[1734073292352,8.33962678,224.19,224.15,0.5323517]
[1734073293259,13.13936465,224.2,224.15,0.5323517]
[1734073293461,13.13936465,224.19,224.15,0.5323517]
[1734073294861,3.25790513,224.18,224.15,0.5323517]
[1734073295058,3.25790513,224.17,224.15,0.5323517]
[1734073295263,3.25790513,224.16,224.15,0.5323517]
[1734073301856,3.25790513,224.16,224.15,13.67171635]
[1734073303080,3.25790513,224.16,224.15,21.34481635]
[1734073303950,13.13936465,224.26,224.15,21.34481635]
[1734073304150,3.26878655,224.25,224.19,13.13936465]
[1734073304974,3.26878655,224.25,224.21,13.13936465]
[1734073305179,3.26878655,224.25,224.22,13.13936465]
[1734073305677,3.26878655,224.24,224.22,13.13936465]
[1734073305872,13.13936465,224.29,224.22,13.13936465]
[1734073306055,3.26891058,224.28,224.22,13.13936465]
[1734073306259,13.13936465,224.29,224.22,13.13936465]
[1734073306260,3.26891058,224.27,224.22,13.13936465]
[1734073306577,3.26891058,224.26,224.23,13.13936465]
[1734073307673,3.26891058,224.26,224.17,0.66889957]
[1734073307674,3.26891058,224.25,224.22,13.13936465]
[1734073307882,3.26891058,224.24,224.21,13.13936465]
[1734073308073,13.13936465,224.26,224.19,13.13936465]
[1734073308264,16.40459617,224.25,224.19,13.13936465]
[1734073308964,16.40459617,224.25,224.18,13.13936465]
[1734073309360,3.26523152,224.24,224.18,13.13936465]
[1734073309683,13.13936465,224.25,224.18,13.13936465]
[1734073309866,3.2650712,224.23,224.18,13.13936465]
[1734073310064,3.2650712,224.23,224.19,13.13936465]
[1734073311963,13.13936465,224.27,224.19,13.13936465]
[1734073312163,3.26384892,224.26,224.19,13.13936465]
[1734073312382,3.26384892,224.25,224.19,13.13936465]
[1734073312590,3.26384892,224.24,224.19,13.13936465]
[1734073312783,13.13936465,224.27,224.19,13.13936465]
[1734073312987,3.26322079,224.26,224.19,13.13936465]
[1734073313182,16.40258544,224.26,224.19,13.13936465]
[1734073314705,3.26322079,224.26,224.19,13.13936465]
[1734073314865,3.26322079,224.25,224.19,13.13936465]
[1734073315189,3.26322079,224.25,224.19,8.40391431]
[1734073316395,3.26322079,224.24,224.19,8.40391431]